bitfinex-derivatives/quotes_ETHF0:USTF0_20250530
["timestamp","ask_amount","ask_price","bid_price","bid_amount"]
[1748644041875,3.2078,2547.8,2547.0,16.4371665]
[1748644042072,0.78479,2547.8,2547.6,3.2078]
[1748644042279,0.78479,2547.8,2547.7,1.2427]
[1748644042776,0.00588558,2548.4,2547.7,1.2427]
[1748644042777,3.77282399,2549.0,2547.7,6.2427]
[1748644042980,0.78448,2548.8,2548.6,3.99231]
[1748644043176,0.78448,2548.8,2548.7,1.2962]
[1748644043982,0.79635375,2548.8,2548.5,0.00588558]
[1748644044282,0.78452,2548.6,2548.5,0.00588558]
[1748644044884,1.58087375,2548.6,2548.5,0.00588558]
[1748644045382,0.78452,2548.6,2548.5,1.30208558]
[1748644046481,0.78451,2548.7,2548.5,2.08662558]
[1748644046685,0.78448,2548.8,2548.6,3.99232]
[1748644046981,3.2078,2549.3,2549.2,0.78434]
[1748644047181,1.96016,2550.1,2549.5,0.78423]
[1748644047386,0.78418,2549.7,2549.6,1.2962]
[1748644047789,1.58053375,2549.7,2549.6,1.2962]
[1748644048693,3.2078,2550.2,2549.6,1.2962]
[1748644048888,5.33695375,2550.2,2549.6,1.2962]
[1748644049093,0.78418,2549.7,2549.6,1.2962]
[1748644049395,0.78418,2549.7,2549.6,2.08042]
[1748644049801,0.78418,2549.7,2549.6,1.2962]
[1748644049988,0.98028,2549.7,2549.6,1.2962]
[1748644050693,0.98028,2549.7,2549.6,2.08042]
[1748644050889,0.98028,2549.7,2549.6,1.2962]
[1748644051801,0.1961,2549.7,2549.6,2.08042]
[1748644054196,0.7839,2550.7,2550.6,0.78387]
[1748644054497,0.78388,2550.7,2550.6,8.2888]
[1748644054897,1.58023375,2550.7,2550.6,3.2078]
[1748644055098,1.95939,2551.1,2550.6,3.2078]
[1748644055298,0.78379,2551.0,2550.9,3.2078]
[1748644055697,1.58014375,2551.0,2550.9,3.2078]
[1748644057101,0.78379,2551.0,2550.9,3.2078]
[1748644057402,0.78379,2551.0,2550.9,3.99162]
[1748644057906,0.78379,2551.0,2550.9,3.2078]
[1748644058306,1.9587,2552.0,2551.4,0.78364]
[1748644058502,0.78361,2551.6,2551.5,1.3653]
[1748644059001,0.78363,2551.5,2551.4,3.21368558]
[1748644059197,2.13953,2551.5,2551.4,3.21368558]
[1748644059398,0.78363,2551.5,2551.4,0.00588558]
[1748644059604,1.57998375,2551.5,2551.4,0.00588558]
[1748644060001,1.95855,2552.2,2551.4,3.21368558]
[1748644060205,1.95855,2552.2,2551.8,3.2078]
[1748644060206,0.78351,2551.9,2551.8,3.2078]
[1748644060506,0.7836,2551.6,2551.5,9.6521]
[1748644060705,0.7836,2551.6,2551.5,4.5731]
[1748644060908,0.78354,2551.8,2551.5,4.5731]
[1748644061108,2.15225375,2552.1,2551.5,4.5731]
[1748644061710,4.00415375,2552.1,2551.5,4.5731]
[1748644061906,0.78352,2551.9,2551.5,4.5731]
[1748644062113,2.1198,2552.0,2551.5,4.5731]
[1748644062307,2.13265375,2552.0,2551.5,4.5731]
[1748644062506,0.78353,2551.9,2551.5,4.5731]
[1748644062809,0.78356,2551.8,2551.5,4.5731]
[1748644063110,0.7836,2551.6,2551.5,3.2078]
[1748644063308,0.78359,2551.7,2551.5,3.2078]
[1748644063510,2.13265375,2552.0,2551.5,4.4709]
[1748644063511,0.7836,2551.6,2551.5,4.4709]
[1748644063709,0.78359,2551.7,2551.5,4.4709]
[1748644063911,0.78358,2551.7,2551.5,4.4709]
[1748644064114,0.79635375,2551.7,2551.5,4.4709]
[1748644064411,0.7836,2551.6,2551.5,4.4709]
[1748644064710,0.79635375,2551.7,2551.5,3.2078]
[1748644064907,0.7836,2551.6,2551.5,4.5383]
[1748644065310,5.1333,2552.0,2551.5,4.5383]
[1748644065508,0.7836,2551.6,2551.5,4.5383]
[1748644065810,0.78363,2551.5,2551.4,0.00588558]
[1748644066309,1.57998375,2551.5,2551.4,0.00588558]
[1748644067105,5.1665,2552.1,2551.4,0.00588558]
[1748644067311,0.78363,2551.5,2551.4,0.00588558]
[1748644068214,1.57998375,2551.5,2551.4,0.00588558]
[1748644069310,6.57998375,2551.5,2551.4,0.00588558]
[1748644070317,1.57998375,2551.5,2551.4,0.00588558]
[1748644071014,0.78363,2551.5,2551.4,0.00588558]
[1748644074618,5.1666,2551.9,2551.4,0.00588558]
[1748644074924,0.7836,2551.6,2551.5,3.2078]
[1748644075220,0.7836,2551.6,2551.5,4.4643]
[1748644076617,0.7836,2551.6,2551.5,3.2078]
[1748644077822,1.57995375,2551.6,2551.5,3.2078]
[1748644078021,0.78363,2551.5,2551.4,0.00588558]
[1748644078214,2.01323,2551.5,2551.4,0.00588558]
[1748644078524,2.80958375,2551.5,2551.4,0.00588558]
[1748644078827,4.14490579,2551.5,2551.4,0.00588558]
[1748644080720,0.78382,2550.9,2550.8,1.2595]
[1748644081531,0.78388,2550.7,2550.6,3.2078]
[1748644082030,0.78394,2550.5,2550.4,0.00588558]
[1748644082417,0.00588558,2550.9,2550.5,0.78391]
[1748644082624,0.00588558,2550.9,2550.4,0.00588558]
[1748644082922,0.78391,2550.6,2550.5,4.542]
[1748644083824,0.78391,2550.6,2550.5,3.2078]
[1748644084117,0.78394,2550.5,2550.4,0.00588558]
[1748644085024,1.33684723,2550.5,2550.4,2.12405558]
[1748644085218,2.12078723,2550.5,2550.4,1.34008558]
[1748644087429,1.33684723,2550.5,2550.4,1.34008558]
[1748644087626,1.33684723,2550.5,2550.4,2.12405558]
[1748644088228,0.78391,2550.6,2550.5,0.78394]
[1748644088430,0.78391,2550.6,2550.5,2.12444]
[1748644089132,0.78391,2550.6,2550.5,5.33224]
[1748644089630,0.78391,2550.6,2550.5,4.5483]
[1748644090128,0.00588558,2550.9,2550.5,5.33224]
[1748644090430,1.96544558,2550.9,2550.5,4.5483]
[1748644090733,1.96544558,2550.9,2550.5,5.5997]
[1748644090928,0.78391,2550.6,2550.5,6.38363]
[1748644091127,0.7839,2550.7,2550.6,0.7839]
[1748644091326,2.10782545,2550.8,2550.7,0.78388]
[1748644091530,2.10781545,2550.8,2550.7,0.78388]
[1748644091831,1.32396545,2550.8,2550.7,5.78388]
[1748644092133,0.78385,2550.8,2550.7,5.78385]
[1748644092334,0.78388,2550.7,2550.6,0.78389]
[1748644092627,0.00588558,2550.9,2550.6,5.102]
[1748644092824,0.00588558,2550.9,2550.8,3.99165]
[1748644093025,0.78970558,2550.9,2550.8,5.21345]
[1748644094835,0.78385,2550.8,2550.7,1.3145]
[1748644095331,0.78394,2550.5,2550.4,0.00588558]
[1748644095532,0.78394,2550.5,2550.4,1.26738558]
[1748644095732,0.78394,2550.5,2550.4,0.00588558]
[1748644097027,2.05354,2550.5,2550.4,0.00588558]
[1748644097537,3.37753645,2550.5,2550.4,0.00588558]
[1748644100038,0.00588558,2550.9,2550.4,8.21368558]
[1748644100231,2.29520245,2551.2,2551.1,0.78375]
[1748644100433,2.29520245,2551.2,2551.1,9.09355]
[1748644100636,2.29520245,2551.2,2551.1,14.09355]
[1748644100935,3.2078,2551.9,2551.5,0.78363]
[1748644101137,0.78358,2551.7,2551.6,1.345]
[1748644101335,3.99134,2551.9,2551.6,2.12858]
[1748644101539,0.78355,2551.8,2551.6,2.12858]
[1748644101730,0.78355,2551.8,2551.7,1.345]
[1748644102936,4.51,2552.2,2551.7,1.345]
[1748644103234,3.99123,2552.2,2552.0,0.78348]
[1748644103439,3.99123,2552.2,2552.1,1.345]
[1748644103640,3.2078,2552.5,2552.1,1.345]
[1748644103842,3.2078,2552.5,2552.3,0.78336]
[1748644104046,0.78329,2552.7,2552.4,2.01744]
[1748644104339,0.78327,2552.7,2552.4,2.01744]
[1748644104529,3.2078,2552.9,2552.4,1.2341]
[1748644104730,3.2078,2553.6,2552.8,1.95809]
[1748644104937,1.3154,2553.8,2553.3,3.2078]
[1748644105239,1.3154,2553.8,2553.4,10.32694]
[1748644105240,0.78294,2553.8,2553.4,10.32694]
[1748644105440,0.78291,2553.9,2553.5,0.78299]
[1748644105636,0.78294,2553.8,2553.6,1.2341]
[1748644105839,0.78291,2553.9,2553.6,1.2341]
[1748644106037,0.78293,2553.8,2553.6,1.2341]
[1748644106234,0.78305,2553.4,2553.3,0.00588558]
[1748644108444,0.78305,2553.4,2553.3,1.36278558]
[1748644111745,1.95725,2553.9,2553.3,4.57058558]
[1748644111951,0.78305,2553.4,2553.3,4.57058558]
[1748644112148,1.95732,2553.8,2553.3,4.57058558]
[1748644112449,0.78305,2553.4,2553.3,9.55358558]
[1748644112650,0.78305,2553.4,2553.3,4.57058558]
[1748644113354,0.78305,2553.4,2553.3,3.21368558]
[1748644113554,0.78305,2553.4,2553.3,0.00588558]
[1748644115246,0.97845,2553.4,2553.3,0.00588558]
[1748644118553,0.97845,2553.4,2553.3,1.35848558]
[1748644119156,0.97845,2553.4,2553.3,0.00588558]
[1748644122565,0.97845,2553.4,2553.3,1.34878558]
[1748644122753,0.97845,2553.4,2553.3,0.00588558]
[1748644124053,0.97845,2553.4,2553.3,5.58e-06]
[1748644124263,0.78332,2552.5,2552.4,3.2078]
[1748644124468,3.2078,2552.9,2552.3,1.3493]
[1748644124663,0.78326,2552.7,2552.6,3.2078]
[1748644124966,0.78335,2552.4,2552.3,1.3493]
[1748644125661,0.00584717,2552.6,2552.3,6.3493]
[1748644125868,0.78336,2552.4,2552.3,2.13267]
[1748644126062,0.00584717,2552.6,2552.3,7.13267]
[1748644126361,0.78336,2552.4,2552.3,2.13268]
[1748644126562,0.78336,2552.4,2552.3,1.3493]
[1748644127965,0.00584717,2552.6,2552.5,0.78332]
[1748644128465,0.78913717,2552.6,2552.5,5.78332]
[1748644128965,0.78332,2552.5,2552.4,3.2078]
[1748644129165,0.98465717,2552.6,2552.5,0.78332]
[1748644129562,0.78332,2552.5,2552.4,8.2078]
[1748644129761,0.78336,2552.4,2552.3,1.3493]
[1748644130273,0.78342,2552.2,2552.1,3.21367406]
[1748644131764,0.78342,2552.2,2552.1,0.00587406]
[1748644132457,7.11262,2552.2,2552.1,4.06e-06]
[1748644132659,8.39682,2552.2,2552.1,4.06e-06]
[1748644133673,9.64056528,2552.2,2552.1,4.06e-06]
[1748644134668,2.02716528,2552.2,2552.1,4.06e-06]
[1748644134970,1.24374528,2552.2,2552.1,5.78345406]
[1748644135474,0.78334,2552.5,2552.3,0.78337]
[1748644135672,3.40914717,2552.6,2552.2,1.2954]
[1748644135973,0.78339,2552.3,2552.2,1.2954]
[1748644137070,0.78337,2552.4,2552.2,2.0788]
[1748644137273,0.78339,2552.3,2552.2,1.2954]
[1748644137869,5.36740717,2552.6,2552.2,2.07882]
[1748644138171,0.78339,2552.3,2552.2,1.2954]
[1748644138569,0.78339,2552.3,2552.1,0.78344406]
[1748644138873,0.78342,2552.2,2552.1,4.06e-06]
[1748644139770,2.13902,2552.2,2552.1,4.06e-06]
[1748644140774,0.78342,2552.2,2552.1,4.06e-06]
[1748644140974,0.7834,2552.3,2552.1,0.78342406]
[1748644141171,5.36740717,2552.6,2552.2,1.3668]
[1748644141474,0.78339,2552.3,2552.2,1.3668]
[1748644143175,3.40914717,2552.6,2552.2,4.5746]
[1748644143369,0.78335,2552.5,2552.3,0.78338]
[1748644143670,0.98463717,2552.6,2552.5,0.78332]
[1748644143977,0.78336,2552.4,2552.3,8.02327]
[1748644144365,0.78335,2552.5,2552.3,13.02327]
[1748644144570,0.78336,2552.4,2552.3,7.2399]
[1748644144870,0.20134717,2552.6,2552.3,7.2399]
[1748644145076,0.78336,2552.4,2552.3,7.2399]
[1748644145268,0.78333,2552.5,2552.4,0.78334]
[1748644145463,0.78333,2552.5,2552.4,1.376]
[1748644145464,0.78332,2552.5,2552.4,1.376]
[1748644146272,0.78336,2552.4,2552.3,3.2078]
[1748644146579,0.78342,2552.2,2552.1,1.28750406]
[1748644146776,0.78342,2552.2,2552.1,4.06e-06]
[1748644148076,2.09752,2552.2,2552.1,4.06e-06]
[1748644149476,7.09752,2552.2,2552.1,4.06e-06]
[1748644150972,11.89052,2552.2,2552.1,4.06e-06]
[1748644151477,26.33152,2552.2,2552.1,4.06e-06]
[1748644152382,0.78342,2552.2,2552.1,4.06e-06]
[1748644154882,0.97932,2552.2,2552.1,4.06e-06]
[1748644159972,0.1959,2552.2,2552.1,0.78345406]
[1748644160782,0.1959,2552.2,2552.1,4.06e-06]
[1748644160783,0.97932,2552.2,2552.1,4.06e-06]
[1748644162487,0.00584717,2552.6,2552.1,5.78345406]
[1748644162786,0.78335,2552.5,2552.4,0.78335]
[1748644163386,0.78335,2552.4,2552.3,8.78517]
[1748644163984,0.78335,2552.4,2552.3,13.78517]
[1748644164180,0.78335,2552.4,2552.3,13.0018]
[1748644164387,0.78335,2552.4,2552.3,8.0018]
[1748644164681,0.78342,2552.2,2552.1,4.06e-06]
[1748644164889,0.78341,2552.3,2552.2,0.78342]
[1748644165183,0.78342,2552.2,2552.1,0.78343406]
[1748644165391,0.78342,2552.2,2552.1,4.06e-06]
[1748644165582,0.78341,2552.3,2552.2,0.78341]
[1748644166090,0.78342,2552.2,2552.1,0.78342406]
[1748644166481,0.1955,2552.5,2552.1,5.00000406]
[1748644166687,0.78337,2552.4,2552.3,3.99116]
[1748644167189,0.78337,2552.4,2552.3,3.2078]
[1748644167785,0.78342,2552.2,2552.1,4.06e-06]
[1748644169286,5.78342,2552.2,2552.1,4.06e-06]
[1748644169590,7.06952,2552.2,2552.1,4.06e-06]
[1748644169785,8.33612,2552.2,2552.1,4.06e-06]
[1748644170183,0.78363,2551.5,2551.4,3.2078]
[1748644170388,0.78385,2550.8,2550.7,3.2078]
[1748644170591,0.78397,2550.4,2550.3,3.2078]
[1748644171290,0.78397,2550.4,2550.3,4.5735]
[1748644171891,0.78397,2550.4,2550.3,3.2078]
[1748644172091,0.78403,2550.2,2550.1,0.00587406]
[1748644172696,2.07273,2550.2,2550.1,0.00587406]
[1748644174193,5.28053,2550.2,2550.1,0.00587406]
[1748644175200,9.4965,2550.2,2548.9,3.2078]
[1748644175509,0.78435,2549.2,2548.9,5.36322]
[1748644175697,0.78438,2549.1,2548.9,4.5788]
[1748644175899,1.96062,2549.5,2548.9,4.5788]
[1748644176095,0.7844,2549.1,2548.9,4.58467406]
[1748644176397,0.7844,2549.0,2548.9,0.00587406]
[1748644176693,2.1202,2549.0,2548.9,0.00587406]
[1748644176900,0.7844,2549.0,2548.9,0.00587406]
[1748644178097,3.2078,2549.4,2548.9,0.00587406]
[1748644178394,0.7844,2549.0,2548.9,0.00587406]
[1748644179301,2.1202,2549.0,2548.9,0.00587406]
[1748644179696,6.7952,2549.0,2548.9,0.00587406]
[1748644180598,11.7952,2549.0,2548.9,4.06e-06]
[1748644181191,6.7952,2549.0,2548.9,4.06e-06]
[1748644182203,11.7952,2549.0,2548.9,4.06e-06]
[1748644183500,0.78471,2548.0,2547.9,3.2078]
[1748644184696,0.78477,2547.8,2547.7,1.41258593]
[1748644185204,0.00588593,2548.2,2548.1,0.78468]
[1748644185407,0.79053593,2548.2,2548.1,3.2078]
[1748644186310,1.96177,2548.0,2547.7,0.00588593]
[1748644186606,0.78477,2547.8,2547.7,0.00588593]
[1748644188311,0.78477,2547.8,2547.7,1.37538593]
[1748644189713,3.29572,2548.1,2547.7,1.37538593]
[1748644189714,0.78476,2547.9,2547.7,2.16017593]
[1748644189912,0.00588593,2548.2,2547.7,2.16017593]
[1748644189913,0.00588593,2548.2,2548.1,0.78468]
[1748644190205,3.2078,2549.2,2548.1,3.2078]
[1748644190410,3.2078,2549.5,2548.8,3.2078]
[1748644190614,3.2078,2549.5,2548.9,1.3997]
[1748644190815,1.9607,2549.4,2548.9,1.3997]
[1748644191011,1.3806,2549.4,2548.9,1.3997]
[1748644191222,0.00588593,2549.4,2549.0,0.78437]
[1748644191417,0.78432,2549.3,2549.1,2.18404]
[1748644191713,0.78432,2549.3,2549.2,1.3997]
[1748644191918,0.79017593,2549.4,2549.2,2.18404]
[1748644192123,0.78431,2549.3,2549.2,1.3997]
[1748644192307,0.78431,2549.3,2549.1,3.99214]
[1748644192308,0.1961,2549.3,2549.1,3.2078]
[1748644192508,0.78434,2549.2,2548.9,0.00588593]
[1748644192713,0.7844,2549.0,2548.9,0.00588593]
[1748644192922,0.78439,2549.1,2548.9,0.00588593]
[1748644193125,0.7844,2549.0,2548.9,0.00588593]
[1748644193824,0.7844,2549.0,2548.9,3.21368593]
[1748644194026,0.1961,2549.3,2548.9,3.21368593]
[1748644194326,0.78437,2549.2,2548.9,3.21368593]
[1748644194521,0.78437,2549.1,2549.0,0.78439]
[1748644194923,0.78437,2549.1,2548.9,3.99809593]
[1748644195121,0.1961,2549.3,2548.9,3.21368593]
[1748644195322,0.7844,2549.0,2548.9,3.21368593]
[1748644195622,0.7844,2549.0,2548.9,3.99811593]
[1748644196030,0.7844,2549.0,2548.9,3.21368593]
[1748644197320,0.7844,2549.0,2548.9,0.00588593]
[1748644199328,0.7844,2549.0,2548.9,0.79031593]
[1748644199522,0.7844,2549.0,2548.9,3.99807593]
[1748644200130,0.7844,2549.0,2548.9,3.21368593]
[1748644200527,0.98043,2549.3,2549.2,0.78434]
[1748644200830,0.98043,2549.3,2549.2,3.2078]
[1748644201135,0.1961,2549.3,2549.2,3.99214]
[1748644201321,2.29520245,2550.2,2549.3,1.96078]
[1748644201519,2.29520245,2550.2,2549.2,12.8818]
[1748644201520,0.78426,2549.5,2549.4,3.2078]
[1748644202121,1.96064,2549.5,2549.0,2.6662]
[1748644202327,1.96064,2549.5,2549.1,3.2078]
[1748644202328,0.78434,2549.2,2549.1,3.2078]
[1748644202730,0.7844,2549.0,2548.9,0.00588593]
[1748644203030,1.96078,2549.3,2548.9,0.79030593]
[1748644203234,0.7844,2549.0,2548.9,0.00588593]
[1748644203423,0.78439,2549.1,2549.0,0.7844]
[1748644203625,0.7844,2549.0,2548.9,0.00588593]
[1748644204029,0.196,2549.2,2549.1,0.78437]
[1748644204230,0.196,2549.2,2549.1,8.66617]
[1748644204532,0.98034,2549.2,2549.1,8.66617]
[1748644204831,0.196,2549.2,2549.1,10.05797]
[1748644205231,0.98034,2549.2,2549.1,9.2736]
[1748644205427,0.196,2549.2,2549.1,4.5996]
[1748644205628,0.196,2549.2,2549.1,5.38397]
[1748644205825,0.98034,2549.2,2549.1,4.5996]
[1748644206932,0.196,2549.2,2549.1,5.38397]
[1748644207125,0.98034,2549.2,2549.1,5.38397]
[1748644208130,0.196,2549.2,2549.1,5.38397]
[1748644208831,0.98034,2549.2,2549.1,5.38397]
[1748644209034,2.29520245,2550.3,2549.1,9.5996]
[1748644209230,0.78412,2549.9,2549.8,3.99193]
[1748644209537,0.78412,2549.9,2549.8,3.2078]
[1748644210735,5.78412,2549.9,2549.8,3.2078]
[1748644211028,0.78422,2549.6,2549.5,0.9805]
[1748644211529,5.78422,2549.6,2549.5,0.01385]
[1748644211735,0.7844,2549.0,2548.9,0.59428593]
[1748644211930,3.9922,2549.0,2548.9,0.59428593]
[1748644212539,5.3166,2549.0,2548.9,0.59428593]
[1748644212835,3.2078,2549.0,2548.9,6.37871593]
[1748644213136,0.78432,2549.3,2549.1,0.78435]
[1748644213334,5.16823,2549.8,2549.2,3.2078]
[1748644213537,0.78433,2549.3,2549.2,3.2078]
[1748644213935,5.16823,2549.8,2549.3,0.78429]
[1748644214134,0.78425,2549.5,2549.3,0.78429]
[1748644214434,0.7843,2549.4,2549.2,3.2078]
[1748644214635,0.7843,2549.4,2549.2,3.99213]
[1748644215136,0.78431,2549.3,2549.2,3.2078]
[1748644215438,3.2078,2549.8,2549.2,3.2078]
[1748644215636,0.7843,2549.4,2549.3,0.78431]
[1748644215838,0.78431,2549.3,2549.2,3.99213]
[1748644216136,0.78429,2549.4,2549.3,0.78429]
[1748644216332,3.2078,2549.8,2549.3,4.673]
[1748644216643,0.78423,2549.6,2549.5,0.78422]
[1748644217036,0.78428,2549.5,2549.4,0.78427]
[1748644217333,3.2078,2549.8,2549.4,5.0]
[1748644217639,0.78417,2549.8,2549.7,0.78418]
[1748644218242,0.78418,2549.7,2549.6,3.99199]
[1748644218441,0.78418,2549.7,2549.6,3.2078]
[1748644219842,0.78418,2549.7,2549.6,3.99202]
[1748644221445,0.78418,2549.7,2549.6,3.2078]
[1748644222145,0.78418,2549.7,2549.6,3.99198]
[1748644222443,0.78418,2549.7,2549.6,3.99202]
[1748644222834,0.78415,2549.9,2549.8,0.78412]
[1748644223242,0.78415,2549.9,2549.8,5.45612]
[1748644223445,0.78415,2549.9,2549.8,6.75292]
[1748644224142,0.78412,2549.9,2549.8,5.9688]
[1748644224941,0.78412,2549.9,2549.8,4.672]
[1748644225144,0.78418,2549.7,2549.6,3.2078]
[1748644226835,0.00585113,2550.1,2549.8,1.96038]
[1748644227041,0.78991113,2550.1,2550.0,3.99189]
[1748644227437,0.00585113,2550.1,2550.0,3.99189]
[1748644227638,0.00585113,2550.1,2550.0,8.99189]
[1748644227838,0.78388,2550.8,2550.7,0.78385]
[1748644228041,0.78391,2550.7,2550.6,3.2078]
[1748644228244,0.78391,2550.7,2550.6,3.99171]
[1748644228841,0.78391,2550.7,2550.6,3.2078]
[1748644229444,0.78391,2550.7,2550.6,3.99171]
[1748644229844,0.78391,2550.7,2550.6,3.2078]
[1748644231447,0.78386,2550.8,2550.7,0.78385]
[1748644231648,0.78385,2550.9,2550.8,0.78383]
[1748644232440,0.78385,2550.8,2550.7,1.3028]
[1748644233144,0.78382,2550.9,2550.8,0.78381]
[1748644234051,0.7838,2551.0,2550.9,0.78379]
[1748644234257,0.78385,2550.9,2550.8,0.78384]
[1748644234547,0.78385,2550.8,2550.7,2.08666]
[1748644234749,0.7838,2551.0,2550.9,0.7838]
[1748644235139,3.2078,2551.2,2550.8,5.9715]
[1748644235449,0.78378,2551.0,2550.9,3.99159]
[1748644235746,0.78378,2551.1,2551.0,0.78376]
[1748644236240,0.78373,2551.3,2551.2,0.7837]
[1748644236450,3.2078,2551.5,2551.0,1.95946]
[1748644236643,0.78374,2551.3,2551.2,0.7837]
[1748644237934,3.2078,2551.9,2551.2,6.95929]
[1748644238140,0.78357,2551.7,2551.6,3.2078]
[1748644238548,1.95862,2552.1,2551.6,3.2078]
[1748644238937,0.78341,2552.3,2551.9,3.2078]
[1748644239137,0.78335,2552.4,2552.2,3.99119]
[1748644239345,1.3919,2552.8,2552.2,3.2078]
[1748644239644,0.78339,2552.3,2552.2,3.2078]
[1748644240147,0.78339,2552.3,2552.2,7.8728]
[1748644241047,0.78337,2552.4,2552.3,0.78336]
[1748644241247,1.9582,2552.7,2552.2,7.8728]
[1748644241436,0.78337,2552.4,2552.3,0.78336]
[1748644241642,0.78334,2552.5,2552.4,0.78334]
[1748644241947,0.78337,2552.4,2552.2,7.8728]
[1748644242153,1.95819,2552.7,2552.2,8.65619]
[1748644242154,0.78339,2552.3,2552.2,8.65619]
[1748644242638,0.78338,2552.4,2552.3,0.78337]
[1748644242947,0.78335,2552.5,2552.4,0.78334]
[1748644243147,1.3392,2553.3,2552.2,7.8728]
[1748644243342,0.78324,2552.8,2552.7,0.78323]
[1748644243551,3.2078,2553.5,2553.2,0.78309]
[1748644243746,0.78313,2553.2,2553.1,8.66080593]
[1748644243947,1.95753,2553.6,2553.1,7.87768593]
[1748644244144,1.3769,2553.7,2553.1,7.87768593]
[1748644244350,0.78305,2553.5,2553.4,0.78303]
[1748644244544,0.78302,2553.6,2553.5,0.78301]
[1748644244942,0.78302,2553.5,2553.4,3.2078]
[1748644246950,5.16501,2554.0,2553.4,3.2078]
[1748644247157,3.2078,2554.0,2553.4,3.99082]
[1748644247446,0.78302,2553.5,2553.4,3.99082]
[1748644247653,1.3796,2555.2,2553.5,1.3146]
[1748644247856,0.78265,2554.7,2554.6,3.2078]
[1748644249256,0.78264,2554.8,2554.6,3.99047]
[1748644249951,0.78264,2554.8,2554.6,3.2078]
[1748644250250,0.78265,2554.7,2554.6,3.2078]
[1748644254950,0.78271,2554.5,2554.4,0.00587418]
[1748644255152,0.78271,2554.5,2554.4,3.21367418]
[1748644256349,5.78271,2554.5,2554.4,2.305e-05]
[1748644256555,10.38371,2554.5,2554.4,2.305e-05]
[1748644256950,8.53761,2554.5,2554.4,2.305e-05]
[1748644257156,11.74541,2554.5,2554.4,2.305e-05]
[1748644259763,0.78296,2553.7,2553.6,3.2078]
[1748644260261,0.78299,2553.6,2553.2,3.2078]
[1748644260458,0.78317,2553.0,2552.9,3.2078]
[1748644260655,0.78317,2553.0,2552.6,4.66]
[1748644260656,3.91586,2553.0,2552.7,0.00587418]
[1748644260856,0.78323,2552.8,2552.7,0.00587418]
[1748644261858,0.00583499,2553.2,2553.1,0.78314]
[1748644262058,0.00583499,2553.2,2553.1,3.2078]
[1748644262365,0.78894499,2553.2,2553.1,3.2078]
[1748644264451,0.00583499,2553.2,2553.1,8.99094]
[1748644264654,2.7354,2554.2,2553.1,8.2078]
[1748644264854,1.95683,2554.5,2552.9,1.2896]
[1748644264855,0.78286,2554.0,2553.9,3.2078]
[1748644265063,0.78286,2554.0,2553.9,4.514]
[1748644265763,1.95686,2554.4,2553.9,4.514]
[1748644265961,0.78283,2554.1,2553.9,4.514]
[1748644266163,0.78286,2554.0,2553.9,4.514]
[1748644267056,0.78286,2554.0,2553.9,3.2078]
[1748644267667,1.95679,2554.5,2553.9,3.99067]
[1748644267960,0.78284,2554.1,2554.0,1.3819]
[1748644269164,3.35139,2554.5,2554.0,1.3819]
[1748644269466,1.3838,2554.6,2554.1,0.78282]
[1748644269660,0.78277,2554.3,2554.2,1.3819]
[1748644269861,0.78277,2554.3,2554.2,4.5897]
[1748644270058,1.3946,2554.9,2554.6,0.78268]
[1748644270365,0.78265,2554.7,2554.6,3.2078]
[1748644270667,0.78277,2554.3,2554.2,3.2078]
[1748644271863,1.9568,2554.5,2553.9,5.28417]
[1748644272060,0.78285,2554.1,2553.9,5.28417]
[1748644272362,0.78286,2554.0,2553.9,4.5013]
[1748644272763,0.78285,2554.1,2553.9,5.28419]
[1748644272964,1.95648,2554.9,2554.4,0.78272]
[1748644273167,0.78268,2554.6,2554.5,1.2935]
[1748644273966,4.51092837,2554.8,2554.1,3.99062]
[1748644274265,1.23125837,2554.6,2554.1,3.2078]
[1748644274467,1.23125837,2554.6,2554.2,2.06279]
[1748644274663,3.18790837,2554.7,2554.3,1.28]
[1748644274869,0.78274,2554.4,2554.3,1.28]
[1748644275070,0.7828,2554.2,2554.1,3.2078]
[1748644276371,0.78286,2554.0,2553.9,1.28]
[1748644276977,0.78285,2554.1,2553.9,1.28]
[1748644277174,0.78285,2554.1,2554.0,0.78286]
[1748644277374,0.78286,2554.0,2553.9,2.06287]
[1748644277573,0.78286,2554.0,2553.9,1.28]
[1748644278378,0.78286,2554.0,2553.8,3.21367418]
[1748644278379,0.78289,2553.9,2553.8,3.21367418]
[1748644278570,0.78289,2553.9,2553.8,0.00587418]
[1748644279283,2.01489514,2553.9,2553.8,0.00587418]
[1748644280279,6.23200514,2553.9,2553.1,3.2078]
[1748644280574,0.78311,2553.2,2553.1,3.2078]
[1748644282081,0.78317,2553.0,2552.9,0.00587418]
[1748644282672,8.99097,2553.0,2552.9,4.18e-06]
[1748644283572,0.78336,2552.4,2552.3,1.3459]
[1748644283779,0.78345,2552.1,2552.0,3.2078]
[1748644284383,0.78345,2552.1,2552.0,1.3459]
[1748644284775,1.95675,2554.6,2552.5,3.2078]
[1748644284983,0.78289,2553.9,2553.8,3.2078]
[1748644285276,0.78299,2553.6,2553.5,3.2078]
[1748644286680,0.00587418,2553.8,2553.5,3.99081]
[1748644287086,0.00587418,2553.8,2553.7,0.78296]
[1748644287878,0.00587418,2553.8,2553.6,0.78297]
[1748644288082,0.00587418,2553.8,2553.7,0.78296]
[1748644288282,0.00587418,2553.8,2553.6,2.16487]
[1748644288481,0.00587418,2553.8,2553.7,0.78296]
[1748644288985,0.00587418,2553.8,2553.6,2.16487]
[1748644289182,0.78880418,2553.8,2553.7,1.2876]
[1748644289385,0.78299,2553.6,2553.5,3.2078]
[1748644290479,2.03379,2553.6,2553.5,3.2078]
[1748644290679,1.95755,2553.5,2552.7,3.2078]
[1748644290874,6.2508,2553.6,2552.0,4.655]
[1748644290875,3.2078,2553.0,2552.4,4.4954]
[1748644291081,3.20848,2553.4,2552.7,3.2078]